fUST/lending_fUST_20250128
["ID","MTS","AMOUNT","RATE_DAILY","PERIOD"]
[350621223,1738003842509,-500.0,0.00021759,2]
[350621225,1738003842518,-500.0,0.00021759,2]
[350621227,1738003842528,-562.48,0.00021759,2]
[350621229,1738003842537,-500.0,0.00021759,2]
[350621231,1738003842547,-500.0,0.00021759,2]
[350621233,1738003842556,-500.0,0.00021759,2]
[350621235,1738003842566,-500.0,0.00021759,2]
[350621237,1738003842575,-540.94,0.00021759,2]
[350621239,1738003842584,-500.0,0.00021759,2]
[350621241,1738003842594,-500.0,0.00021759,2]
[350621243,1738003842605,-500.0,0.00021759,2]
[350621245,1738003842614,-256.62851103,0.00021759,2]
[350621246,1738003842624,-500.0,0.00021759,2]
[350621247,1738003842634,-500.0,0.00021759,2]
[350621248,1738003842644,-683.72,0.00021759,2]
[350621249,1738003842654,-500.0,0.00021759,2]
[350621250,1738003842664,-500.0,0.00021759,2]
[350621251,1738003842673,-500.0,0.00021759,2]
[350621252,1738003842683,-525.0,0.00021759,2]
[350621253,1738003842693,-10046.54356903,0.00021833,2]
[350621255,1738003842703,-157.45,0.00021894,2]
[350621257,1738003842713,-1050.71,0.00021894,2]
[350621258,1738003842722,-649.87,0.00021894,2]
[350621259,1738003842731,-1790.97,0.00021894,2]
[350621260,1738003842741,-500.0,0.00021894,2]
[350621261,1738003842750,-500.0,0.00021894,2]
[350621263,1738003842759,-500.0,0.00021894,2]
[350621265,1738003842769,-756.27,0.00021894,2]
[350621267,1738003842778,-738.23,0.00021894,2]
[350621269,1738003842786,-500.0,0.00021894,2]
[350621271,1738003842796,-800.25,0.00021894,2]
[350621274,1738003842805,-1360.99,0.00021894,2]
[350621276,1738003842814,-500.0,0.00021894,2]
[350621277,1738003842824,-704.56,0.00021894,2]
[350621278,1738003842833,-500.0,0.00021894,2]
[350621279,1738003842842,-500.0,0.00021894,2]
[350621280,1738003842851,-500.0,0.00021894,2]
[350621281,1738003842860,-500.0,0.00021894,2]
[350621282,1738003842870,-500.0,0.00021894,2]
[350621283,1738003842879,-500.0,0.00021894,2]
[350621284,1738003842889,-500.0,0.00021895,2]
[350621285,1738003842898,-500.0,0.00021895,2]
[350621286,1738003842907,-500.0,0.00021895,2]
[350621287,1738003842917,-500.0,0.00021895,2]
[350621288,1738003842927,-500.0,0.00021895,2]
[350621289,1738003842937,-500.0,0.00021895,2]
[350621290,1738003842946,-500.0,0.00021895,2]
[350621291,1738003842955,-794.22,0.00021895,2]
[350621292,1738003842965,-500.0,0.00021895,2]
[350621293,1738003843047,-500.0,0.00021895,2]
[350621294,1738003843069,-500.0,0.00021895,2]
[350621295,1738003843079,-500.0,0.00021895,2]
[350621296,1738003843088,-4325.05,0.00021895,2]
[350621297,1738003843097,-181.88061924,0.00021895,2]
[350621299,1738003843107,-500.0,0.00021895,2]
[350621301,1738003843116,-500.0,0.00021895,2]
[350621302,1738003843126,-500.0,0.00021895,2]
[350621303,1738003843136,-500.0,0.00021895,2]
[350621305,1738003843145,-562.5,0.00021895,2]
[350621306,1738003843155,-3529.81,0.00021895,2]
[350621307,1738003843165,-500.0,0.00021895,2]
[350621308,1738003843175,-500.0,0.00021895,2]
[350621309,1738003843184,-500.0,0.00021895,2]
[350621310,1738003843194,-11861.87,0.00021895,2]
[350621311,1738003843205,-691.72,0.00021895,2]
[350621312,1738003843214,-500.0,0.00021895,2]
[350621313,1738003843224,-500.0,0.00021895,2]
[350621314,1738003843234,-500.0,0.00021895,2]
[350621315,1738003843243,-500.0,0.00021896,2]
[350621316,1738003843253,-500.0,0.00021896,2]
[350621317,1738003843262,-259.3197886,0.00021896,2]
[350621318,1738003843272,-500.0,0.00021896,2]
[350621319,1738003843281,-500.0,0.00021896,2]
[350621320,1738003843291,-562.48,0.00021896,2]
[350621321,1738003843300,-500.0,0.00021896,2]
[350621322,1738003843309,-500.0,0.00021896,2]
[350621323,1738003843319,-500.0,0.00021896,2]
[350621324,1738003843328,-500.0,0.00021896,2]
[350621325,1738003843338,-540.94,0.00021896,2]
[350621327,1738003843348,-500.0,0.00021896,2]
[350621329,1738003843358,-500.0,0.00021896,2]
[350621331,1738003843368,-500.0,0.00021896,2]
[350621333,1738003843377,-500.0,0.00021896,2]
[350621334,1738003843387,-500.0,0.00021896,2]
[350621335,1738003843396,-683.72,0.00021896,2]
[350621336,1738003843406,-500.0,0.00021896,2]
[350621337,1738003843416,-500.0,0.00021896,2]
[350621338,1738003843425,-500.0,0.00021896,2]
[350621339,1738003843435,-525.0,0.00021896,2]
[350621340,1738003843444,-1823.23539994,0.000219,3]
[350621341,1738003843453,-151.0,0.0002193,2]
[350621342,1738003843462,-1823.23539982,0.00021934,3]
[350621343,1738003843472,-292.60583029,0.0002196,2]
[350621344,1738003843481,-600.0,0.00021967,2]
[350621345,1738003843491,-1823.23539982,0.00021969,3]
[350621346,1738003843500,-1000.0,0.00022,22]
[350621348,1738003843509,-1823.23539982,0.00022003,3]
[350621350,1738003843518,-1050.71,0.00022031,2]
[350621351,1738003843528,-649.87,0.00022031,2]
[350621352,1738003843538,-1790.97,0.00022031,2]
[350621353,1738003843547,-500.0,0.00022031,2]
[350621354,1738003843557,-500.0,0.00022031,2]
[350621355,1738003843566,-500.0,0.00022031,2]
[350621356,1738003843575,-756.27,0.00022031,2]
[350621357,1738003843584,-738.23,0.00022031,2]
[350621358,1738003843593,-500.0,0.00022031,2]
[350621359,1738003843605,-800.25,0.00022031,2]
[350621360,1738003843615,-1360.99,0.00022031,2]
[350621361,1738003843624,-500.0,0.00022031,2]
[350621362,1738003843633,-704.56,0.00022031,2]
[350621363,1738003843642,-500.0,0.00022031,2]
[350621364,1738003843652,-500.0,0.00022031,2]
[350621365,1738003843661,-500.0,0.00022031,2]
[350621366,1738003843671,-500.0,0.00022031,2]
[350621367,1738003843680,-500.0,0.00022031,2]
[350621368,1738003843691,-500.0,0.00022031,2]
[350621369,1738003843700,-500.0,0.00022032,2]
[350621370,1738003843709,-500.0,0.00022032,2]
[350621371,1738003843719,-500.0,0.00022032,2]
[350621372,1738003843728,-500.0,0.00022032,2]
[350621373,1738003843737,-500.0,0.00022032,2]
[350621374,1738003843747,-500.0,0.00022032,2]
[350621375,1738003843756,-500.0,0.00022032,2]
[350621376,1738003843766,-794.22,0.00022032,2]
[350621377,1738003843775,-290.57425814,0.00022032,2]
[350621378,1738003843784,-500.0,0.00022032,2]
[350621379,1738003843794,-500.0,0.00022032,2]
[350621380,1738003843804,-500.0,0.00022032,2]
[350621381,1738003843813,-4325.05,0.00022032,2]
[350621382,1738003843822,-500.0,0.00022032,2]
[350621383,1738003843831,-500.0,0.00022032,2]
[350621384,1738003843840,-500.0,0.00022032,2]
[350621385,1738003843851,-500.0,0.00022032,2]
[350621386,1738003843860,-562.5,0.00022032,2]
[350621387,1738003843869,-3529.81,0.00022032,2]
[350621388,1738003843879,-500.0,0.00022032,2]
[350621389,1738003843888,-500.0,0.00022032,2]
[350621390,1738003843898,-500.0,0.00022032,2]
[350621391,1738003843907,-11861.87,0.00022032,2]
[350621392,1738003843917,-691.72,0.00022032,2]
[350621393,1738003843926,-500.0,0.00022032,2]
[350621394,1738003843935,-500.0,0.00022032,2]
[350621395,1738003843945,-500.0,0.00022032,2]
[350621396,1738003843954,-500.0,0.00022033,2]
[350621397,1738003843963,-498.87126747,0.00022033,2]
[350621398,1738003843973,-500.0,0.00022033,2]
[350621399,1738003843982,-500.0,0.00022033,2]
[350621400,1738003843992,-562.48,0.00022033,2]
[350621401,1738003844003,-500.0,0.00022033,2]
[350621402,1738003844012,-500.0,0.00022033,2]
[350621403,1738003844021,-500.0,0.00022033,2]
[350621404,1738003844030,-351.05297722,0.00022033,2]
[350621405,1738003844041,-540.94,0.00022033,2]
[350621406,1738003844050,-500.0,0.00022033,2]
[350621407,1738003844059,-173.46726981,0.00022033,2]
[350621408,1738003844069,-500.0,0.00022033,2]
[350621409,1738003844078,-500.0,0.00022033,2]
[350621410,1738003844087,-500.0,0.00022033,2]
[350621411,1738003844098,-683.72,0.00022033,2]
[350621412,1738003844107,-500.0,0.00022033,2]
[350621413,1738003844117,-500.0,0.00022033,2]
[350621414,1738003844127,-500.0,0.00022033,2]
[350621415,1738003844136,-525.0,0.00022033,2]
[350621416,1738003844145,-1823.23539982,0.00022038,3]
[350621417,1738003844155,-610.04840072,0.00022043,2]
[350621418,1738003844164,-418.09024108,0.00022071,7]
[350621419,1738003844173,-1823.23539982,0.00022072,3]
[350621420,1738003844183,-1534.326,0.00022078,2]
[350621421,1738003844192,-2304.0,0.00022078,2]
[350621422,1738003844201,-150.321,0.00022078,2]
[350621423,1738003844211,-395.0,0.00022078,2]
[350621424,1738003844220,-1823.23539982,0.00022107,3]
[350621425,1738003844229,-1823.23539982,0.00022141,3]
[350621426,1738003844239,-1050.71,0.00022168,2]
[350621427,1738003844248,-649.87,0.00022168,2]
[350621428,1738003844257,-1790.97,0.00022168,2]
[350621429,1738003844266,-500.0,0.00022168,2]
[350621430,1738003844276,-500.0,0.00022168,2]
[350621431,1738003844285,-500.0,0.00022168,2]
[350621432,1738003844294,-756.27,0.00022168,2]
[350621433,1738003844304,-738.23,0.00022168,2]
[350621434,1738003844313,-500.0,0.00022168,2]
[350621435,1738003844322,-800.25,0.00022168,2]
[350621436,1738003844331,-1360.99,0.00022168,2]
[350621437,1738003844340,-500.0,0.00022168,2]
[350621438,1738003844349,-704.56,0.00022168,2]
[350621439,1738003844358,-500.0,0.00022168,2]
[350621440,1738003844368,-500.0,0.00022168,2]
[350621441,1738003844377,-500.0,0.00022168,2]
[350621442,1738003844386,-500.0,0.00022168,2]
[350621443,1738003844395,-500.0,0.00022168,2]
[350621444,1738003844404,-500.0,0.00022168,2]
[350621445,1738003844413,-500.0,0.00022169,2]
[350621446,1738003844423,-500.0,0.00022169,2]
[350621447,1738003844432,-604.26581967,0.00022169,2]
[350621448,1738003844442,-500.0,0.00022169,2]
[350621449,1738003844451,-500.0,0.00022169,2]
[350621450,1738003844461,-500.0,0.00022169,2]
[350621451,1738003844470,-500.0,0.00022169,2]
[350621452,1738003844480,-794.22,0.00022169,2]
[350621453,1738003844489,-500.0,0.00022169,2]
[350621454,1738003844498,-500.0,0.00022169,2]
[350621455,1738003844508,-4325.05,0.00022169,2]
[350621456,1738003844518,-500.0,0.00022169,2]
[350621457,1738003844528,-500.0,0.00022169,2]
[350621458,1738003844538,-500.0,0.00022169,2]
[350621459,1738003844547,-500.0,0.00022169,2]
[350621460,1738003844556,-562.5,0.00022169,2]
[350621461,1738003844565,-3529.81,0.00022169,2]
[350621462,1738003844575,-500.0,0.00022169,2]
[350621463,1738003844584,-500.0,0.00022169,2]
[350621464,1738003844593,-500.0,0.00022169,2]
[350621465,1738003844603,-11861.87,0.00022169,2]
[350621466,1738003844613,-691.72,0.00022169,2]
[350621467,1738003844623,-500.0,0.00022169,2]
[350621468,1738003844632,-500.0,0.00022169,2]
[350621469,1738003844641,-500.0,0.00022169,2]
[350621470,1738003844651,-500.0,0.0002217,2]
[350621471,1738003844660,-500.0,0.0002217,2]
[350621472,1738003844670,-500.0,0.0002217,2]
[350621473,1738003844680,-562.48,0.0002217,2]
[350621474,1738003844689,-500.0,0.0002217,2]
[350621475,1738003844698,-500.0,0.0002217,2]
[350621476,1738003844708,-500.0,0.0002217,2]
[350621477,1738003844718,-540.94,0.0002217,2]
[350621478,1738003844727,-500.0,0.0002217,2]
[350621479,1738003844736,-500.0,0.0002217,2]
[350621480,1738003844746,-500.0,0.0002217,2]
[350621481,1738003844755,-246.44848378,0.0002217,2]
[350621482,1738003844765,-683.72,0.0002217,2]
[350621483,1738003844775,-473.90078964,0.0002217,2]
[350621484,1738003844784,-500.0,0.0002217,2]
[350621485,1738003844794,-500.0,0.0002217,2]
[350621486,1738003844804,-525.0,0.0002217,2]
[350621487,1738003844813,-292.60583029,0.00022172,2]
[350621488,1738003844823,-1823.23539982,0.00022176,3]
[350621489,1738003844833,-600.0,0.00022193,2]
[350621490,1738003844842,-1823.23539982,0.0002221,3]
[350621491,1738003844853,-1000.0,0.00022222,2]
[350621492,1738003844863,-1823.23539982,0.00022245,3]
[350621493,1738003844873,-1954.67,0.00022274,2]
[350621494,1738003844883,-151.118,0.00022274,2]
[350621495,1738003844893,-1823.23539982,0.00022279,3]
[350621496,1738003844903,-1050.71,0.00022305,2]
[350621497,1738003844913,-649.87,0.00022305,2]
[350621498,1738003844922,-1790.97,0.00022305,2]
[350621499,1738003844932,-500.0,0.00022305,2]
[350621500,1738003844941,-500.0,0.00022305,2]
[350621501,1738003844950,-500.0,0.00022305,2]
[350621502,1738003844960,-756.27,0.00022305,2]
[350621503,1738003844970,-738.23,0.00022305,2]
[350621504,1738003844980,-500.0,0.00022305,2]
[350621505,1738003844990,-800.25,0.00022305,2]
[350621506,1738003845002,-1360.99,0.00022305,2]
[350621507,1738003845011,-500.0,0.00022305,2]
[350621508,1738003845021,-704.56,0.00022305,2]
[350621509,1738003845031,-500.0,0.00022305,2]
[350621510,1738003845042,-500.0,0.00022305,2]
[350621511,1738003845052,-500.0,0.00022305,2]
[350621512,1738003845135,-500.0,0.00022305,2]
[350621513,1738003845155,-500.0,0.00022305,2]
[350621514,1738003845165,-500.0,0.00022305,2]
[350621515,1738003845175,-500.0,0.00022306,2]
[350621516,1738003845185,-500.0,0.00022306,2]
[350621517,1738003845195,-500.0,0.00022306,2]
[350621518,1738003845205,-500.0,0.00022306,2]
[350621519,1738003845214,-309.10440541,0.00022306,2]
[350621520,1738003845224,-500.0,0.00022306,2]
[350621521,1738003845234,-794.22,0.00022306,2]
[350621522,1738003845244,-319.6570126,0.00022306,2]
[350621523,1738003845253,-500.0,0.00022306,2]
[350621524,1738003845263,-4325.05,0.00022306,2]
[350621525,1738003845272,-500.0,0.00022306,2]
[350621526,1738003845282,-500.0,0.00022306,2]
[350621527,1738003845291,-500.0,0.00022306,2]
[350621528,1738003845300,-500.0,0.00022306,2]
[350621529,1738003845310,-562.5,0.00022306,2]
[350621530,1738003845319,-3529.81,0.00022306,2]
[350621531,1738003845328,-500.0,0.00022306,2]
[350621532,1738003845337,-500.0,0.00022306,2]
[350621533,1738003845347,-500.0,0.00022306,2]
[350621534,1738003845357,-11861.87,0.00022306,2]
[350621535,1738003845368,-691.72,0.00022306,2]
[350621536,1738003845377,-500.0,0.00022306,2]
[350621537,1738003845386,-500.0,0.00022306,2]
[350621538,1738003845395,-500.0,0.00022306,2]
[350621540,1738003845404,-227.93714026,0.00022307,2]
[350621542,1738003845413,-178.58,0.00022307,2]
[350621543,1738003845422,-566.52731293,0.00022307,2]
[350621544,1738003845431,-562.48,0.00022307,2]
[350621545,1738003845441,-500.0,0.00022307,2]
[350621546,1738003845450,-500.0,0.00022307,2]
[350621547,1738003845459,-500.0,0.00022307,2]
[350621548,1738003845468,-540.94,0.00022307,2]
[350621549,1738003845478,-500.0,0.00022307,2]
[350621550,1738003845487,-500.0,0.00022307,2]
[350621551,1738003845496,-500.0,0.00022307,2]
[350621552,1738003845506,-683.72,0.00022307,2]
[350621553,1738003845515,-500.0,0.00022307,2]
[350621554,1738003845525,-500.0,0.00022307,2]
[350621555,1738003845535,-525.0,0.00022307,2]
[350621556,1738003845545,-1823.23539982,0.00022314,3]
[350621557,1738003845555,-1823.23539982,0.00022348,3]
[350621558,1738003845564,-1823.23539982,0.00022383,3]
[350621559,1738003845573,-292.60583029,0.00022385,2]
[350621560,1738003845582,-1823.23539982,0.00022417,3]
[350621561,1738003845592,-843.47773102,0.0002242,2]
[350621562,1738003845603,-1050.71,0.00022442,2]
[350621564,1738003845614,-649.87,0.00022442,2]
[350621566,1738003845623,-1790.97,0.00022442,2]
[350621568,1738003845632,-500.0,0.00022442,2]
[350621569,1738003845641,-500.0,0.00022442,2]
[350621570,1738003845651,-500.0,0.00022442,2]
[350621571,1738003845660,-756.27,0.00022442,2]
[350621572,1738003845669,-738.23,0.00022442,2]
[350621573,1738003845679,-500.0,0.00022442,2]
[350621574,1738003845687,-800.25,0.00022442,2]
[350621575,1738003845696,-1360.99,0.00022442,2]
[350621576,1738003845706,-500.0,0.00022442,2]
[350621577,1738003845715,-704.56,0.00022442,2]
[350621578,1738003845726,-500.0,0.00022442,2]
[350621579,1738003845736,-500.0,0.00022442,2]
[350621580,1738003845745,-500.0,0.00022442,2]
[350621581,1738003845755,-500.0,0.00022442,2]
[350621582,1738003845764,-500.0,0.00022442,2]
[350621583,1738003845775,-500.0,0.00022442,2]
[350621584,1738003845784,-500.0,0.00022443,2]
[350621585,1738003845793,-500.0,0.00022443,2]
[350621586,1738003845803,-159.00114575,0.00022443,2]
[350621587,1738003845812,-500.0,0.00022443,2]
[350621588,1738003845822,-500.0,0.00022443,2]
[350621589,1738003845831,-794.22,0.00022443,2]
[350621590,1738003845841,-500.0,0.00022443,2]
[350621591,1738003845851,-4325.05,0.00022443,2]
[350621592,1738003845862,-500.0,0.00022443,2]
[350621593,1738003845871,-500.0,0.00022443,2]
[350621594,1738003845880,-423.90106936,0.00022443,2]
[350621595,1738003845889,-500.0,0.00022443,2]
[350621596,1738003845898,-562.5,0.00022443,2]
[350621597,1738003845908,-3529.81,0.00022443,2]
[350621598,1738003845918,-500.0,0.00022443,2]
[350621599,1738003845927,-500.0,0.00022443,2]
[350621600,1738003845937,-500.0,0.00022443,2]
[350621601,1738003845946,-11861.87,0.00022443,2]
[350621602,1738003845956,-691.72,0.00022443,2]
[350621604,1738003845966,-151.0,0.00022443,7]
[350621605,1738003845975,-500.0,0.00022443,2]
[350621606,1738003845985,-500.0,0.00022443,2]
[350621608,1738003845996,-500.0,0.00022443,2]
[350621610,1738003846007,-562.48,0.00022444,2]
[350621611,1738003846017,-500.0,0.00022444,2]
[350621613,1738003846026,-500.0,0.00022444,2]
[350621614,1738003846036,-500.0,0.00022444,2]
[350621615,1738003846046,-540.94,0.00022444,2]
[350621616,1738003846055,-500.0,0.00022444,2]
[350621617,1738003846064,-500.0,0.00022444,2]
[350621618,1738003846074,-500.0,0.00022444,2]
[350621619,1738003846084,-683.72,0.00022444,2]
[350621620,1738003846093,-500.0,0.00022444,2]
[350621621,1738003846103,-500.0,0.00022444,2]
[350621622,1738003846112,-265.964732,0.00022444,7]
[350621623,1738003846122,-525.0,0.00022444,2]
[350621624,1738003846131,-1823.23539982,0.00022452,3]
[350621625,1738003846140,-1823.23539982,0.00022486,3]
[350621627,1738003846150,-10630.0,0.000225,2]
[350621629,1738003846159,-305.807407,0.000225,10]
[350621631,1738003846168,-151.0,0.000225,7]
[350621633,1738003846178,-153.0,0.000225,31]
[350621635,1738003846187,-153.0,0.000225,31]
[350621637,1738003846196,-153.0,0.000225,31]
[350621639,1738003846205,-153.0,0.000225,31]
[350621641,1738003846214,-153.0,0.000225,31]
[350621643,1738003846223,-153.0,0.000225,31]
[350621645,1738003846232,-153.0,0.000225,31]
[350621647,1738003846241,-153.0,0.000225,31]
[350621649,1738003846251,-151.0,0.000225,7]
[350621651,1738003846261,-1823.23539982,0.00022521,3]
[350621652,1738003846271,-1823.23539982,0.00022555,3]
[350621653,1738003846280,-1050.71,0.00022579,2]
[350621654,1738003846289,-649.87,0.00022579,2]
[350621655,1738003846298,-1790.97,0.00022579,2]
[350621656,1738003846307,-500.0,0.00022579,2]
[350621657,1738003846317,-500.0,0.00022579,2]
[350621658,1738003846326,-500.0,0.00022579,2]
[350621659,1738003846335,-756.27,0.00022579,2]
[350621660,1738003846345,-738.23,0.00022579,2]
[350621661,1738003846357,-500.0,0.00022579,2]
[350621662,1738003846367,-800.25,0.00022579,2]
[350621663,1738003846376,-1360.99,0.00022579,2]
[350621664,1738003846386,-500.0,0.00022579,2]
[350621665,1738003846395,-704.56,0.00022579,2]
[350621666,1738003846404,-500.0,0.00022579,2]
[350621667,1738003846413,-500.0,0.00022579,2]
[350621668,1738003846422,-500.0,0.00022579,2]
[350621669,1738003846432,-500.0,0.00022579,2]
[350621670,1738003846441,-500.0,0.00022579,2]
[350621671,1738003846451,-500.0,0.00022579,2]
[350621672,1738003846460,-500.0,0.0002258,2]
[350621673,1738003846469,-500.0,0.0002258,2]
[350621674,1738003846479,-500.0,0.0002258,2]
[350621675,1738003846488,-500.0,0.0002258,2]
[350621676,1738003846497,-794.22,0.0002258,2]
[350621677,1738003846507,-500.0,0.0002258,2]
[350621678,1738003846516,-4325.05,0.0002258,2]
[350621679,1738003846526,-500.0,0.0002258,2]
[350621680,1738003846535,-500.0,0.0002258,2]
[350621681,1738003846545,-500.0,0.0002258,2]
[350621682,1738003846554,-562.5,0.0002258,2]
[350621683,1738003846563,-3529.81,0.0002258,2]
[350621684,1738003846573,-500.0,0.0002258,2]
[350621685,1738003846582,-500.0,0.0002258,2]
[350621686,1738003846591,-500.0,0.0002258,2]
[350621687,1738003846599,-11861.87,0.0002258,2]
[350621688,1738003846614,-691.72,0.0002258,2]
[350621689,1738003846623,-500.0,0.0002258,2]
[350621690,1738003846632,-500.0,0.0002258,2]
[350621691,1738003846641,-500.0,0.0002258,2]
[350621692,1738003846651,-151.0,0.00022581,7]
[350621693,1738003846660,-151.0,0.00022581,7]
[350621694,1738003846670,-151.0,0.00022581,7]
[350621695,1738003846679,-562.48,0.00022581,2]
[350621696,1738003846688,-500.0,0.00022581,2]
[350621697,1738003846699,-500.0,0.00022581,2]
[350621698,1738003846708,-500.0,0.00022581,2]
[350621699,1738003846717,-540.94,0.00022581,2]
[350621700,1738003846727,-500.0,0.00022581,2]
[350621701,1738003846736,-500.0,0.00022581,2]
[350621702,1738003846745,-176.70850737,0.00022581,2]
[350621703,1738003846754,-683.72,0.00022581,2]
[350621704,1738003846764,-500.0,0.00022581,2]
[350621705,1738003846773,-500.0,0.00022581,2]
[350621706,1738003846782,-525.0,0.00022581,2]
[350621707,1738003846792,-263.492837,0.00022582,7]
[350621708,1738003846802,-263.492837,0.00022582,7]
[350621709,1738003846812,-1823.23539982,0.0002259,3]
[350621710,1738003846821,-168.011098,0.0002259,7]
[350621711,1738003846830,-168.011098,0.0002259,7]
[350621712,1738003846839,-292.60583029,0.00022597,2]
[350621713,1738003846848,-2000.0,0.000226,2]
[350621714,1738003846859,-188.0,0.000226,2]
[350621715,1738003846868,-331.0,0.00022619,15]
[350621716,1738003846878,-1823.23539982,0.00022624,3]
[350621717,1738003846887,-151.565558,0.00022634,7]
[350621718,1738003846896,-500.0,0.00022635,8]
[350621719,1738003846905,-500.0,0.00022635,8]
[350621720,1738003846915,-500.0,0.00022637,14]
[350621721,1738003846924,-500.0,0.00022637,14]
[350621722,1738003846934,-150.78176506,0.00022637,14]
[350621723,1738003846943,-500.0,0.00022637,3]
[350621724,1738003846953,-500.0,0.00022637,14]
[350621725,1738003846963,-500.0,0.00022637,14]
[350621726,1738003846972,-150.14,0.00022637,2]
[350621727,1738003846984,-150.14,0.00022637,14]
[350621728,1738003847073,-500.0,0.00022646,2]
[350621729,1738003847083,-151.0,0.00022646,15]
[350621730,1738003847092,-1823.23539982,0.00022659,3]
[350621731,1738003847101,-500.0,0.00022673,2]
[350621732,1738003847115,-500.0,0.00022673,2]
[350621733,1738003847125,-1823.23539982,0.00022693,3]
[350621734,1738003847134,-2134.80889047,0.00022697,5]
[350621735,1738003847144,-1520.34321268,0.00022697,5]
[350621736,1738003847153,-176488.09749672,0.00022697,61]
[350621737,1738003847239,-121480.11360411,0.00022697,61]
[350621738,1738003847251,-19031.92761565,0.00022697,61]
[350621739,1738003847264,-2783.75367808,0.00022697,61]
[350621740,1738003847311,-541.91,0.00021347,2]
[350621741,1738003847322,-541.91,0.00021484,2]
[350621742,1738003847332,-541.91,0.00021621,2]
[350621743,1738003847342,-541.91,0.00021758,2]
[350621744,1738003847357,-541.91,0.00021895,2]
[350621745,1738003847368,-541.91,0.00022032,2]
[350621746,1738003847378,-541.91,0.00022169,2]
[350621747,1738003847389,-541.91,0.00022306,2]
[350621748,1738003847399,-87296.71999996,0.00022697,61]
[350621749,1738003847478,-995.67538918,0.00021658,3]
[350621750,1738003847547,-249.75125,0.0002121,2]
[350621751,1738003847560,-250.24875,0.0002121,2]
[350621752,1738003847570,-153.0,0.00021245,2]
[350621753,1738003847579,-5992.82415312,0.00021658,3]
[350621754,1738003847589,-541.91,0.00022443,2]
[350621755,1738003847599,-541.91,0.0002258,2]
[350621756,1738003847617,-91520.1070969,0.00022697,61]
[350621769,1738004753920,1005.83768226,0.000226,120]
[350621770,1738004831112,-5000.0,0.00018801,2]
[350621771,1738004831134,-2265.52877553,0.00018991,2]
[350621772,1738004831170,-1319.35052655,0.00018991,2]
[350621773,1738004848117,-300.0,0.00018801,2]
[350621774,1738004848139,-240.3224408,0.00018991,2]
[350621814,1738005032245,-309.7139885,0.00018801,2]
[350621817,1738005032299,-1753.64865461,0.00018801,2]
[350621819,1738005032309,-151.77122116,0.000189,2]
[350621820,1738005032319,-226.778783,0.00019971,2]
[350621821,1738005032330,-639.4720537,0.00020039,2]
[350621823,1738005032344,-192.814694,0.00020641,2]
[350621824,1738005032353,-6116.0,0.0002084,2]
[350621825,1738005032364,-300.0,0.00020998,2]
[350621826,1738005032373,-500.0,0.00020999,2]
[350621827,1738005032383,-500.0,0.00020999,2]
[350621828,1738005032393,-500.0,0.00020999,2]
[350621829,1738005032402,-500.0,0.00020999,2]